[Event "56th Rubinstein Memorial C 2020"]
[Site "Polanica Zdroj"]
[Date "2020.08.22"]
[Round "8.14"]
[White "Kejna, Piotr"]
[Black "Urbaniak, Karol"]
[Result "1-0"]
[ECO "C50"]
[WhiteElo "1767"]
[BlackElo "1612"]
[Annotator "NA RC"]
[PlyCount "89"]
[EventDate "2020.08.15"]
[EventType "swiss"]
[EventCountry "POL"]
[SourceTitle "playchess.com"]
[Source "ChessBase"]
[SourceQuality "1"]
[TimeControl "40/5400+30:1800+30"]

1. e4 {[%emt 0:00:00]} e5 {[%emt 0:01:42]} 2. Nf3 {[%emt 0:00:00]} Nc6 {[%emt 0:00:08]} 3. Bc4 {[%emt 0:00:00]} Nf6 {[%emt 0:00:07]} 4. d3 {[%emt 0:00:00]} Bc5 {[%emt 0:00:45]} 5. c3 {[%emt 0:00:00]} d6 {[%emt 0:00:17]} 6. Bb3 {[%emt 0:00:22]} Be6 {[%emt 0:01:21]} 7. Bc2 {[%emt 0:00:32]} d5 {[%emt 0:01:07]} 8. exd5 {[%emt 0:00:48]} Nxd5 {[%emt 0:01:40]} 9. Qe2 {[%emt 0:00:43]} Nf4 {[%emt 0:03:31]} 10. Bxf4 {[%emt 0:00:22]} exf4 {[%emt 0:02:56]} 11. d4 {[%emt 0:00:13]} Bb6 {[%emt 0:00:49]} 12. O-O {[%emt 0:00:20]} O-O {[%emt 0:00:26]} 13. Qe4 {[%emt 0:00:09]} g6 {[%emt 0:00:28]} 14. Qxf4 {[%emt 0:00:09]} Ne7 {[%emt 0:00:25]} 15. Nbd2 {[%emt 0:02:08]} Nd5 {[%emt 0:00:26]} 16. Qh6 {[%emt 0:00:22]} Qf6 {[%emt 0:01:03]} 17. Ne4 {[%emt 0:01:25]} Qg7 {[%emt 0:00:10]} 18. Qh4 {[%emt 0:01:22]} f6 {[%emt 0:00:26]} 19. Rfe1 {[%emt 0:06:29]} Rae8 {[%emt 0:03:18]} 20. c4 {[%emt 0:02:29]} Nb4 {[%emt 0:02:27]} 21. Ba4 {[%emt 0:00:07]} c6 {[%emt 0:00:24]} 22. d5 {[%emt 0:01:35]} cxd5 {[%emt 0:01:27]} 23. cxd5 {[%emt 0:00:52]} Bxd5 {[%emt 0:00:07]} 24. Bxe8 {[%emt 0:00:16]} Nd3 {[%emt 0:00:13]} 25. Re2 {[%emt 0:05:57]} g5 {[%emt 0:00:39]} 26. Qg4 {[%emt 0:10:01]} f5 {[%emt 0:03:12]} 27. Qxg5 {[%emt 0:00:20]} Bxe4 {[%emt 0:00:22]} 28. Qxg7+ {[%emt 0:00:33]} Kxg7 {[%emt 0:00:03]} 29. Bb5 {[%emt 0:00:21]} Nf4 {[%emt 0:01:24]} 30. Rd2 {[%emt 0:01:13]} Rf6 {[%emt 0:02:42]} 31. Ne1 {[%emt 0:02:23]} Rg6 {[%emt 0:03:39]} 32. g3 {[%emt 0:00:40]} Nh3+ {[%emt 0:01:55]} 33. Kf1 {[%emt 0:00:23]} h5 {[%emt 0:04:30]} 34. f3 {[%emt 0:00:32]} Bc6 {[%emt 0:00:55]} 35. Bxc6 {[%emt 0:00:06]} bxc6 {[%emt 0:00:29]} 36. Rd7+ {[%emt 0:01:22]} Kh6 {[%emt 0:00:27]} 37. Nd3 {[%emt 0:00:51]} h4 {[%emt 0:02:24]} 38. Kg2 {[%emt 0:00:29]} hxg3 {[%emt 0:00:15]} 39. hxg3 {[%emt 0:00:07]} Ng1 {[%emt 0:00:46]} 40. Ne5 {[%emt 0:00:00]} Re6 {[%emt 0:00:00]} 41. Rd6 {[%emt 0:00:44]} Rxd6 {[%emt 0:00:40]} 42. Nf7+ {[%emt 0:00:03]} Kg6 {[%emt 0:00:14]} 43. Nxd6 {[%emt 0:00:02]} Ne2 {[%emt 0:00:09]} 44. Nc4 {[%emt 0:00:13]} Bd4 {[%emt 0:00:13]} 45. Re1 {[%emt 0:00:06]} 1-0

[Event "56th Rubinstein Memorial C 2020"]
[Site "Polanica Zdroj"]
[Date "2020.08.23"]
[Round "9.2"]
[White "Podgorski, Maciej"]
[Black "Adamczewski, Maciej"]
[Result "1/2-1/2"]
[ECO "C13"]
[WhiteElo "1810"]
[BlackElo "2045"]
[Annotator "NA"]
[PlyCount "67"]
[EventDate "2020.08.15"]
[EventType "swiss"]
[EventCountry "POL"]
[SourceTitle "playchess.com"]
[Source "ChessBase"]
[SourceQuality "1"]
[TimeControl "40/5400+30:1800+30"]

{[%evp 8,48,0,33,12,22,20,32767,32767,10,15,17,19,20,32767,32767,2,-12,-22,-56,-4,-42,4,0,18,0,0,-52,-61,-106,-54,-105,30,12,12,12,17,18,196,150,182,163,156]} 1. e4 {[%emt 0:00:00]} e6 {[%emt 0:00:00]} 2. d4 {[%emt 0:00:00]} d5 {[%emt 0:00:00]} 3. Nc3 {[%emt 0:00:00]} Nf6 {[%emt 0:00:00]} 4. Bg5 {[%emt 0:00:13]} Be7 {[%emt 0:00:00]} 5. e5 {[%emt 0:00:06]} Nfd7 {[%emt 0:00:02]} 6. h4 {[%emt 0:00:13]} h6 {[%emt 0:00:31]} 7. Bxe7 {[%emt 0:00:51]} Qxe7 {[%emt 0:00:05]} 8. f4 {[%emt 0:00:11]} a6 {[%emt 0:00:31] C14: French: Classical System: 4 Bg5 Be7 main line.} 9. Nf3 {[%emt 0:01:09]} c5 {[%emt 0:00:19]} 10. Qd2 {[%emt 0:01:15]} Nc6 {[%emt 0:00:09]} 11. Be2 {[%emt 0:03:53] [#]} b5 $146 {[%emt 0:01:00]} ({Predecessor:} 11... cxd4 12. Nxd4 Nxd4 13. Qxd4 Qc5 14. O-O-O b5 15. g4 Bb7 16. Rhe1 Rc8 17. a3 Nb6 18. Qxc5 Rxc5 {0-1 (31) Wiedenbruch,P (1391)-Glagau,L (1450) Duesseldorf 2017}) 12. Rh3 {[%emt 0:03:18]} Bb7 {[%emt 0:01:14]} 13. Nd1 {[%emt 0:03:42]} cxd4 {[%emt 0:06:21]} 14. Nxd4 {[%emt 0:00:05]} Nc5 {[%emt 0:01:24]} 15. Nf2 {[%emt 0:00:55]} Rc8 {[%emt 0:02:20]} 16. c3 {[%emt 0:03:26]} O-O {[%emt 0:02:17]} 17. g4 {[%emt 0:03:51]} f6 $1 {[%emt 0:00:20]} 18. Qe3 {[%emt 0:05:25]} fxe5 {[%emt 0:06:32]} 19. fxe5 {[%emt 0:00:15]} Rxf2 {[%emt 0:06:11]} (19... Nxd4 $17 20. Qxd4 Rf7) 20. Kxf2 {[%emt 0:02:18]} Ne4+ {[%emt 0:00:28]} 21. Kg1 {[%emt 0:01:45]} Nxe5 {[%emt 0:00:14]} 22. Rf1 {[%emt 0:02:38]} Nf7 $2 {[%emt 0:12:34] [#]} (22... Nc4 $11 23. Bxc4 dxc4) 23. g5 $1 hxg5 {[%emt 0:00:24]} 24. Bg4 {[%emt 0:12:39]} e5 $16 {[%emt 0:06:20]} 25. Rxf7 {[%emt 0:26:10]} Kxf7 {[%emt 0:00:44]} 26. Be6+ {[%emt 0:02:25]} Ke8 {[%emt 0:08:32]} 27. hxg5 {[%emt 0:14:07]} Qc5 {[%emt 0:08:49]} 28. Qf3 {[%emt 0:06:05]} Qxd4+ {[%emt 0:11:12]} 29. cxd4 {[%emt 0:01:33]} Rc1+ {[%emt 0:00:04]} 30. Kh2 {[%emt 0:02:52]} Rc2+ {[%emt 0:00:05]} 31. Kg1 {[%emt 0:01:11]} Rc1+ {[%emt 0:00:05]} 32. Kh2 {[%emt 0:00:18]} Rc2+ {[%emt 0:00:04]} 33. Kg1 {[%emt 0:00:38]} Rc1+ {[%emt 0:00:21]} 34. Kh2 {[%emt 0:00:25]} 1/2-1/2

[Event "56th Rubinstein Memorial C 2020"]
[Site "Polanica Zdroj"]
[Date "2020.08.23"]
[Round "9.3"]
[White "Lewandrowski, Tomasz"]
[Black "Walkusz, Witoslaw"]
[Result "0-1"]
[ECO "D85"]
[WhiteElo "1879"]
[BlackElo "2092"]
[Annotator "NA"]
[PlyCount "68"]
[EventDate "2020.08.15"]
[EventType "swiss"]
[EventCountry "POL"]
[SourceTitle "playchess.com"]
[Source "ChessBase"]
[SourceQuality "1"]
[TimeControl "40/5400+30:1800+30"]

{[%evp 9,39,22,30,27,32767,32767,20,-54,0,5,21,-6,0,0,14,8,4,0,7,-6,9,-19,-18,-29,-22,-23,-27,0,-18,32767,32767,-16]} 1. d4 {[%emt 0:00:00]} Nf6 {[%emt 0:00:00]} 2. c4 {[%emt 0:00:00]} g6 {[%emt 0:00:00]} 3. Nc3 {[%emt 0:00:00]} d5 {[%emt 0:00:07]} 4. cxd5 {[%emt 0:03:20]} Nxd5 {[%emt 0:00:05]} 5. e4 {[%emt 0:00:19]} Nxc3 {[%emt 0:00:21]} 6. bxc3 {[%emt 0:00:01]} Bg7 {[%emt 0:00:24]} 7. h3 {[%emt 0:03:43] D85: Exchange Grünfeld: Unusual White 7th moves and lines with 7 Nf3.} c5 {[%emt 0:03:32]} 8. Bb5+ {[%emt 0:05:16]} ({White should try} 8. Nf3 $11) 8... Bd7 {[%emt 0:01:39]} (8... Nc6 $1 $15 9. d5 {[%mdl 64] Pin} a6) 9. Bxd7+ {[%emt 0:04:22] [#]} Nxd7 $146 {[%emt 0:01:12]} ({Predecessor:} 9... Qxd7 10. Ne2 cxd4 11. cxd4 Nc6 12. Be3 O-O 13. O-O Rfd8 14. e5 Qd5 15. Qb3 Qxb3 16. axb3 {0-1 (57) Ruiz,L (2038)-Alvarez Leyva,H (2060) Havana 2009}) 10. Ne2 {[%emt 0:02:03]} O-O {[%emt 0:04:06]} 11. O-O {[%emt 0:00:24]} cxd4 {[%emt 0:05:11]} 12. cxd4 {[%emt 0:00:14]} Nb6 {[%emt 0:06:26]} 13. Rb1 {[%emt 0:03:47]} Qd7 {[%emt 0:01:54]} 14. d5 {[%emt 0:12:11]} e6 {[%emt 0:03:15]} 15. Qb3 {[%emt 0:06:50]} exd5 {[%emt 0:03:12]} 16. exd5 {[%emt 0:00:23]} Rfe8 {[%emt 0:05:35]} 17. Nf4 {[%emt 0:00:59]} Be5 {[%emt 0:12:32]} 18. Rd1 {[%emt 0:05:24]} Qf5 {[%emt 0:03:33]} 19. Qd3 {[%emt 0:05:34]} Qf6 {[%emt 0:02:46]} 20. Qf3 $11 {[%emt 0:02:18]} Rad8 {[%emt 0:05:11]} 21. Be3 {[%emt 0:05:54]} Na4 {[%emt 0:04:56]} 22. Ne2 {[%emt 0:03:36]} Qxf3 {[%emt 0:03:44]} 23. gxf3 {[%emt 0:00:02]} b6 {[%emt 0:00:13]} 24. Rb4 {[%emt 0:03:06]} Nc5 {[%emt 0:00:52]} 25. a4 {[%emt 0:00:56]} Bd6 {[%emt 0:03:04]} 26. Rc4 {[%emt 0:02:12]} Nb7 {[%emt 0:00:37]} 27. Nd4 {[%emt 0:02:19]} Na5 {[%emt 0:02:32]} 28. Rc2 {[%emt 0:00:21]} Bc5 {[%emt 0:05:28]} 29. Rxc5 {[%emt 0:01:32]} bxc5 {[%emt 0:00:44]} 30. Nb5 {[%emt 0:00:12]} Nb3 {[%emt 0:07:11]} 31. Nxa7 {[%emt 0:01:46]} Nd4 {[%emt 0:01:24]} 32. Bxd4 {[%emt 0:00:11]} Rxd5 {[%emt 0:00:26]} 33. Nc6 {[%emt 0:01:37]} Rd6 {[%emt 0:02:42]} 34. Rd2 {[%emt 0:07:52]} cxd4 {[%emt 0:00:39]} 0-1

[Event "56th Rubinstein Memorial C 2020"]
[Site "Polanica Zdroj"]
[Date "2020.08.23"]
[Round "9.4"]
[White "Mazalon, Mariusz"]
[Black "Kozlowski, Pawel"]
[Result "0-1"]
[ECO "E90"]
[WhiteElo "1980"]
[BlackElo "1913"]
[Annotator "NA"]
[PlyCount "66"]
[EventDate "2020.08.15"]
[EventType "swiss"]
[EventCountry "POL"]
[SourceTitle "playchess.com"]
[Source "ChessBase"]
[SourceQuality "1"]
[TimeControl "40/5400+30:1800+30"]

1. d4 {[%emt 0:00:39]} Nf6 {[%emt 0:00:00]} 2. c4 {[%emt 0:00:52]} g6 {[%emt 0:00:00]} 3. Nc3 {[%emt 0:00:40]} Bg7 {[%emt 0:00:00]} 4. e4 {[%emt 0:00:56]} d6 {[%emt 0:00:00]} 5. Nf3 {[%emt 0:00:18]} O-O {[%emt 0:00:00]} 6. h3 {[%emt 0:00:57]} e5 {[%emt 0:00:13]} 7. d5 {[%emt 0:00:08]} a5 {[%emt 0:00:10]} 8. Bg5 {[%emt 0:00:25]} Na6 {[%emt 0:00:18]} 9. Nd2 {[%emt 0:00:57]} Qe8 {[%emt 0:00:32]} 10. g4 {[%emt 0:09:50]} Nd7 {[%emt 0:00:07]} 11. a3 {[%emt 0:00:57]} Ndc5 {[%emt 0:00:53]} 12. b4 $1 {[%emt 0:14:31]} Nd7 {[%emt 0:09:28]} 13. Be2 {[%emt 0:04:47]} Nb6 {[%emt 0:20:53]} 14. bxa5 {[%emt 0:25:26]} (14. c5 $16 axb4 15. axb4 dxc5 16. Bxa6 cxb4 17. Bb5) 14... Nd7 {[%emt 0:01:40]} 15. Nb3 {[%emt 0:05:01]} ({White should try} 15. h4 $11) 15... Ndc5 {[%emt 0:03:41]} 16. Bd2 $17 {[%emt 0:01:59]} (16. Be3 $1 $11) 16... f5 {[%emt 0:05:46]} 17. f3 {[%emt 0:02:10]} fxe4 {[%emt 0:10:48]} 18. Nxe4 {[%emt 0:00:39]} Nxe4 {[%emt 0:01:01]} 19. fxe4 {[%emt 0:00:02]} Qe7 {[%emt 0:00:57]} 20. Be3 {[%emt 0:08:19]} Bd7 {[%emt 0:06:08]} 21. a4 {[%emt 0:02:46]} Qh4+ {[%emt 0:02:40]} 22. Kd2 {[%emt 0:00:31]} Bh6 {[%emt 0:00:11]} 23. Qg1 {[%emt 0:02:24]} Bf4 {[%emt 0:12:50]} 24. Kc3 {[%emt 0:02:59]} c6 {[%emt 0:01:47]} 25. Kb2 {[%emt 0:06:14]} cxd5 {[%emt 0:00:56]} 26. cxd5 {[%emt 0:00:03]} Rac8 {[%emt 0:08:20]} 27. Bb6 {[%emt 0:03:36]} Nb4 {[%emt 0:02:33]} 28. Bb5 {[%emt 0:00:40]} Qe7 {[%emt 0:02:29]} 29. Qd1 {[%emt 0:04:50]} Bxb5 {[%emt 0:02:45]} 30. axb5 {[%emt 0:00:02]} Qd7 {[%emt 0:00:09]} 31. Re1 {[%emt 0:00:28]} Qxb5 {[%emt 0:01:32]} 32. Re2 {[%emt 0:00:51]} Nd3+ {[%emt 0:00:57]} 33. Ka2 {[%emt 0:00:56]} Rc3 {[%emt 0:01:21]} 0-1

[Event "56th Rubinstein Memorial C 2020"]
[Site "Polanica Zdroj"]
[Date "2020.08.23"]
[Round "9.5"]
[White "Iwanczuk, Krzysztof"]
[Black "Komendecki, Antoni"]
[Result "0-1"]
[ECO "B27"]
[WhiteElo "1929"]
[BlackElo "1631"]
[Annotator "NA"]
[PlyCount "68"]
[EventDate "2020.08.15"]
[EventType "swiss"]
[EventCountry "POL"]
[SourceTitle "playchess.com"]
[Source "ChessBase"]
[SourceQuality "1"]
[TimeControl "40/5400+30:1800+30"]

1. e4 {[%emt 0:00:00]} c5 {[%emt 0:00:00]} 2. Nf3 {[%emt 0:00:00]} g6 {[%emt 0:00:29]} 3. d4 {[%emt 0:00:11]} cxd4 {[%emt 0:00:24]} 4. Qxd4 {[%emt 0:00:19]} Nf6 {[%emt 0:00:35]} 5. Nc3 {[%emt 0:00:17]} Nc6 {[%emt 0:00:57]} 6. Qa4 {[%emt 0:00:12]} d6 {[%emt 0:01:02]} 7. e5 {[%emt 0:00:19]} dxe5 {[%emt 0:01:35]} 8. Nxe5 {[%emt 0:00:10]} Bd7 {[%emt 0:01:11] B27: Sicilian: 2 Nf3, unusual Black 2nd moves.} 9. Nxd7 {[%emt 0:00:14]} Qxd7 {[%emt 0:00:56]} 10. Be3 {[%emt 0:00:33]} Bg7 {[%emt 0:06:56]} 11. Rd1 {[%emt 0:00:17]} Qc8 {[%emt 0:00:35]} 12. Be2 {[%emt 0:00:32]} O-O {[%emt 0:01:21]} 13. O-O {[%emt 0:00:10]} a6 {[%emt 0:01:45]} 14. Rfe1 {[%emt 0:00:59] [#]} Qf5 $146 {[%emt 0:07:31]} ({Predecessor:} 14... b5 15. Qh4 Qf5 16. Bf3 Rac8 17. Nd5 Nxd5 18. Rxd5 Ne5 19. Be4 Qe6 20. Bd4 Nc4 21. Bxg7 Kxg7 {0-1 (67) Adhiban,B (2674)-Guseinov,G (2634) Berlin 2015}) 15. g4 {[%emt 0:04:33]} Qc8 {[%emt 0:10:16]} 16. g5 {[%emt 0:04:24]} Nd7 {[%emt 0:08:53]} 17. Qh4 {[%emt 0:04:18]} e6 {[%emt 0:05:36]} 18. Ne4 {[%emt 0:02:41]} Ne7 {[%emt 0:06:29]} 19. Bg4 {[%emt 0:09:05]} (19. c3 $142) 19... Nf5 {[%emt 0:07:43]} 20. Bxf5 {[%emt 0:00:52]} exf5 {[%emt 0:00:15]} 21. Nf6+ $11 {[%emt 0:02:26]} Nxf6 {[%emt 0:00:52]} 22. gxf6 {[%emt 0:00:09]} Bh8 {[%emt 0:00:26]} 23. c3 {[%emt 0:19:26]} Qc6 {[%emt 0:01:50]} 24. Bd4 {[%emt 0:01:12]} Rfd8 {[%emt 0:06:26]} 25. Be5 {[%emt 0:09:14]} Re8 {[%emt 0:11:31]} 26. Re3 {[%emt 0:04:27]} Rxe5 {[%emt 0:02:40]} 27. Rxe5 {[%emt 0:02:53]} Bxf6 {[%emt 0:00:05]} 28. Qf4 {[%emt 0:01:07]} Bxe5 {[%emt 0:00:16]} 29. Qxe5 {[%emt 0:00:07]} Re8 {[%emt 0:00:36]} 30. Qf4 {[%emt 0:02:04]} Re4 {[%emt 0:02:23]} 31. Qb8+ {[%emt 0:03:19]} Kg7 {[%emt 0:00:02]} 32. f3 {[%emt 0:01:22]} Re2 {[%emt 0:05:09]} 33. Qf4 {[%emt 0:02:00]} Rxb2 {[%emt 0:02:18]} 34. Rd8 {[%emt 0:04:33]} Qxc3 {[%emt 0:03:21]} 0-1

[Event "56th Rubinstein Memorial C 2020"]
[Site "Polanica Zdroj"]
[Date "2020.08.23"]
[Round "9.6"]
[White "Demski, Michal"]
[Black "Janzer, Hubert"]
[Result "1-0"]
[ECO "C00"]
[WhiteElo "1617"]
[BlackElo "1893"]
[Annotator "NA"]
[PlyCount "91"]
[EventDate "2020.08.15"]
[EventType "swiss"]
[EventCountry "POL"]
[SourceTitle "playchess.com"]
[Source "ChessBase"]
[SourceQuality "1"]
[TimeControl "40/5400+30:1800+30"]

1. e4 e6 2. d3 d5 3. Nd2 c5 4. Ngf3 Ne7 5. g3 g6 6. Bg2 Bg7 7. O-O Nbc6 8. Re1 b6 9. Qe2 a5 {A08: King's Indian Attack.} 10. e5 Qc7 11. Nf1 Ba6 12. c3 h6 13. h4 $1 O-O-O 14. Bf4 (14. N1h2 $14) 14... g5 15. hxg5 Ng6 16. a3 Rdg8 {[#]} 17. b4 $146 ({Predecessor:} 17. Qd2 hxg5 18. Nxg5 Bxe5 19. Bxe5 Ngxe5 20. d4 Nc4 21. Qf4 Qxf4 22. gxf4 Rh4 23. Nxf7 Rxf4 24. Rxe6 {0-1 (34) Herczku,D (2096)-Csiba,D (2169) Miskolc 2008}) 17... Nxf4 18. gxf4 hxg5 19. fxg5 Bf8 20. Reb1 b5 $16 (20... Bg7 $11 21. bxc5 Nxe5 22. cxb6 Qd6 23. b7+ Kb8) 21. bxc5 a4 22. d4 Be7 23. Qe3 Qd8 24. Ng3 Bxg5 25. Nxg5 Rxg5 26. c4 bxc4 27. Rb6 Bb7 28. Rab1 Na5 29. c6 Rxg3 30. cxb7+ Kb8 31. Qxg3 Nb3 32. Rd6 Qe8 33. Ra6 Kxb7 34. Rd6 Rg8 35. Qc3 Qb5 36. Qf3 Qe8 37. Qc3 Qb5 38. f4 Kc7 39. f5 exf5 40. Kf2 Rg4 41. Bxd5 Rf4+ 42. Kg3 Rxd4 43. Qxd4 Nxd4 44. Rxb5 Nxb5 45. Rc6+ Kd7 46. Rxc4 1-0

[Event "56th Rubinstein Memorial C 2020"]
[Site "Polanica Zdroj"]
[Date "2020.08.23"]
[Round "9.7"]
[White "Kejna, Piotr"]
[Black "Rudecki, Bartosz"]
[Result "1-0"]
[ECO "C42"]
[WhiteElo "1767"]
[BlackElo "1831"]
[Annotator "NA"]
[PlyCount "145"]
[EventDate "2020.08.15"]
[EventType "swiss"]
[EventCountry "POL"]
[SourceTitle "playchess.com"]
[Source "ChessBase"]
[SourceQuality "1"]
[TimeControl "40/5400+30:1800+30"]

1. e4 {[%emt 0:00:00]} e5 {[%emt 0:00:00]} 2. Nf3 {[%emt 0:00:00]} Nf6 {[%emt 0:00:00]} 3. Nxe5 {[%emt 0:00:00]} Nc6 {[%emt 0:00:00]} 4. Nxc6 {[%emt 0:00:51]} dxc6 {[%emt 0:00:00]} 5. Nc3 {[%emt 0:01:47]} Bc5 {[%emt 0:00:00]} 6. Be2 {[%emt 0:02:56] C42: Petroff Defence: 3 Nxe5 and unusual White 3rd moves.} h5 {[%emt 0:00:11]} 7. d3 {[%emt 0:02:04]} Ng4 {[%emt 0:00:45]} 8. Bxg4 {[%emt 0:03:41]} hxg4 {[%emt 0:00:30]} 9. Bf4 {[%emt 0:07:23] [#]} Be6 $146 {[%emt 0:02:41]} ({Predecessor:} 9... f5 10. Qd2 Bd6 11. O-O-O Rh5 12. Rhe1 Be7 13. exf5 Rxf5 14. Bg5 Rf7 15. Rxe7+ Rxe7 16. Re1 Kf7 17. Rxe7+ Kg8 18. Rxg7+ {1-0 (18) Dias,R (2119)-Bartolo,D (1344) Lisbon 2017}) 10. Ne2 {[%emt 0:08:51]} Qf6 {[%emt 0:01:15]} 11. d4 {[%emt 0:01:14]} O-O-O {[%emt 0:02:04]} 12. c3 {[%emt 0:02:14]} Bc4 {[%emt 0:03:32]} 13. Bg3 {[%emt 0:05:30]} Qg6 {[%emt 0:10:02]} 14. b3 {[%emt 0:08:47]} Ba6 {[%emt 0:07:25]} 15. Qc2 {[%emt 0:04:56]} Rde8 {[%emt 0:01:33]} 16. f3 {[%emt 0:01:43]} gxf3 {[%emt 0:01:14]} 17. gxf3 {[%emt 0:00:09]} Bxe2 {[%emt 0:00:21]} 18. Kxe2 {[%emt 0:00:34]} ({But not} 18. Qxe2 $2 {[#]} Qxg3+ $1 {[%mdl 512]} 19. hxg3 Rxh1+ 20. Kf2 Rh2+ {[%mdl 64] Skewer} 21. Kf1 Rxe2 $19) 18... Bd6 {[%emt 0:00:40]} 19. Kf2 {[%emt 0:03:55]} Rh3 {[%emt 0:01:56]} 20. Rag1 {[%emt 0:07:03]} Reh8 $11 {[%emt 0:03:12]} 21. Bxd6 {[%emt 0:05:53]} Qxd6 {[%emt 0:00:05]} 22. Rg2 {[%emt 0:09:12]} Qf4 {[%emt 0:02:05]} 23. Qe2 {[%emt 0:02:12]} g5 {[%emt 0:02:42]} 24. Qe3 {[%emt 0:02:22]} Qh4+ {[%emt 0:01:31]} 25. Ke2 {[%emt 0:00:10]} Rg8 {[%emt 0:07:21]} 26. Qf2 {[%emt 0:02:30]} Qf4 {[%emt 0:00:08]} 27. Rg4 {[%emt 0:01:02]} Qd6 {[%emt 0:00:21]} 28. Qg2 {[%emt 0:03:40]} Rgh8 {[%emt 0:00:37]} 29. e5 {[%emt 0:01:45]} Qg6 {[%emt 0:00:12]} 30. Kd2 {[%emt 0:03:56]} f6 {[%emt 0:00:31]} 31. exf6 {[%emt 0:00:39]} Qxf6 {[%emt 0:00:17]} 32. Rxg5 {[%emt 0:00:44]} Rxf3 {[%emt 0:01:36]} 33. Qg4+ {[%emt 0:01:24]} Kd8 {[%emt 0:00:18]} 34. Rg8+ {[%emt 0:00:16]} Rxg8 {[%emt 0:00:29]} 35. Qxg8+ {[%emt 0:00:04]} Kd7 {[%emt 0:00:10]} 36. Qg4+ {[%emt 0:01:27]} Kd8 {[%emt 0:00:13]} 37. Qg8+ {[%emt 0:03:26]} Kd7 {[%emt 0:00:05]} 38. Qg4+ {[%emt 0:00:04]} Kd8 {[%emt 0:00:03]} 39. h4 {[%emt 0:01:42]} Qh6+ {[%emt 0:02:06]} 40. Qg5+ {[%emt 0:00:00]} Qxg5+ {[%emt 0:00:00]} 41. hxg5 {[%emt 0:00:26]} Rg3 {[%emt 0:00:03]} 42. Rh8+ {[%emt 0:00:22]} Kd7 {[%emt 0:01:44]} 43. Rh7+ {[%emt 0:01:01]} Kd6 {[%emt 0:01:01]} 44. Rg7 {[%emt 0:01:45]} b5 {[%emt 0:01:40]} 45. g6 {[%emt 0:10:08]} a5 {[%emt 0:02:24]} 46. c4 {[%emt 0:04:47]} Rg2+ {[%emt 0:01:35]} 47. Ke3 {[%emt 0:00:36]} Rxa2 {[%emt 0:01:01]} 48. c5+ {[%emt 0:00:07]} Ke6 {[%emt 0:01:11]} 49. Rxc7 {[%emt 0:00:04]} Rg2 {[%emt 0:01:05]} 50. Rxc6+ {[%emt 0:00:15]} Kf5 {[%emt 0:00:31]} 51. Kf3 {[%emt 0:01:25]} Rg1 {[%emt 0:00:18]} 52. Ra6 {[%emt 0:00:26]} a4 {[%emt 0:00:29]} 53. bxa4 {[%emt 0:00:28]} bxa4 {[%emt 0:00:05]} 54. Rxa4 {[%emt 0:06:26]} Rxg6 {[%emt 0:00:06]} 55. Ra8 {[%emt 0:01:49]} Rg1 {[%emt 0:00:44]} 56. Rf8+ {[%emt 0:00:27]} Ke6 {[%emt 0:00:06]} 57. Re8+ {[%emt 0:00:12]} Kd7 {[%emt 0:00:47]} 58. Re5 {[%emt 0:00:15]} Kc6 {[%emt 0:00:22]} 59. Re6+ {[%emt 0:00:06]} Kd7 {[%emt 0:00:27]} 60. Rd6+ {[%emt 0:00:03]} Kc7 {[%emt 0:00:11]} 61. Ke4 {[%emt 0:00:13]} Rg5 {[%emt 0:00:49]} 62. Re6 {[%emt 0:00:40]} Kd7 {[%emt 0:00:50]} 63. Re5 {[%emt 0:00:05]} Rg4+ {[%emt 0:00:09]} 64. Kd5 {[%emt 0:00:05]} Rg6 {[%emt 0:00:24]} 65. Rh5 {[%emt 0:00:26]} Rg1 {[%emt 0:00:58]} 66. Rh7+ {[%emt 0:01:00]} Kc8 {[%emt 0:00:28]} 67. Kc6 {[%emt 0:00:27]} Rg6+ {[%emt 0:00:08]} 68. Kb5 {[%emt 0:00:04]} Rg5 {[%emt 0:00:26]} 69. Kb6 {[%emt 0:00:10]} Rd5 {[%emt 0:00:57]} 70. c6 {[%emt 0:00:14]} Rxd4 {[%emt 0:00:03]} 71. Rh8+ {[%emt 0:00:04]} Rd8 {[%emt 0:00:03]} 72. Rxd8+ {[%emt 0:00:05]} Kxd8 {[%emt 0:00:04]} 73. Kb7 {[%emt 0:00:06]} 1-0

[Event "56th Rubinstein Memorial C 2020"]
[Site "Polanica Zdroj"]
[Date "2020.08.23"]
[Round "9.9"]
[White "Bartlomowicz, Jakub"]
[Black "Borowski, Przemyslaw"]
[Result "1/2-1/2"]
[ECO "B47"]
[WhiteElo "1613"]
[BlackElo "1790"]
[Annotator "NA RC"]
[PlyCount "38"]
[EventDate "2020.08.15"]
[EventType "swiss"]
[EventCountry "POL"]
[SourceTitle "playchess.com"]
[Source "ChessBase"]
[SourceQuality "1"]
[TimeControl "40/5400+30:1800+30"]

1. e4 c5 {[%emt 0:04:14]} 2. Nf3 {[%emt 0:00:02]} e6 {[%emt 0:00:12]} 3. d4 {[%emt 0:00:21]} cxd4 {[%emt 0:00:26]} 4. Nxd4 {[%emt 0:00:17]} Nc6 {[%emt 0:00:10]} 5. Nc3 {[%emt 0:00:50]} Qc7 {[%emt 0:00:15]} 6. Be2 {[%emt 0:00:41]} a6 {[%emt 0:00:20]} 7. O-O {[%emt 0:01:17]} Nf6 {[%emt 0:00:40]} 8. a3 {[%emt 0:02:06]} b5 {[%emt 0:02:06]} 9. Be3 {[%emt 0:03:03]} Bb7 {[%emt 0:00:48]} 10. f3 {[%emt 0:02:35]} Be7 {[%emt 0:00:36]} 11. Nxc6 {[%emt 0:01:32]} Qxc6 {[%emt 0:02:33]} 12. Qe1 {[%emt 0:00:55]} O-O {[%emt 0:01:00]} 13. Qg3 {[%emt 0:01:03]} Rfd8 {[%emt 0:06:31]} 14. e5 {[%emt 0:04:17]} Nd5 {[%emt 0:11:49]} 15. Nxd5 {[%emt 0:00:28]} Qxd5 {[%emt 0:07:33]} 16. Bd3 {[%emt 0:04:11]} Bc5 {[%emt 0:05:06]} 17. Qf2 {[%emt 0:01:31]} Bxe3 {[%emt 0:00:24]} 18. Qxe3 {[%emt 0:00:05]} d6 {[%emt 0:05:23]} 19. exd6 {[%emt 0:02:25]} Qxd6 {[%emt 0:01:41]} 1/2-1/2